fUST/lending_fUST_20250903
["ID","MTS","AMOUNT","RATE_DAILY","PERIOD"]
[383344330,1756907449359,-480.0,0.00013972,2]
[383344331,1756907449368,-1525.83936425,0.00013972,2]
[383344332,1756907449381,-165.04,0.00013972,2]
[383344333,1756907449391,-480.0,0.00013972,2]
[383344334,1756907449401,-422.8,0.00013972,2]
[383344335,1756907449411,-480.0,0.00013972,2]
[383344336,1756907449420,-480.0,0.00013972,2]
[383344337,1756907449430,-5341.1609297,0.00013972,2]
[383344338,1756907449440,-480.0,0.00013972,2]
[383344339,1756907449449,-480.0,0.00013972,2]
[383344340,1756907449459,-595.75,0.00013972,2]
[383344341,1756907449469,-480.0,0.00013972,2]
[383344342,1756907449479,-365.24023752,0.00013972,2]
[383344343,1756907449488,-4136.4573417,0.00013972,2]
[383344344,1756907449497,-480.0,0.00013972,2]
[383344345,1756907449508,-480.0,0.00013972,2]
[383344346,1756907449518,-480.0,0.00013972,2]
[383344347,1756907449527,-481.90278078,0.00013972,2]
[383344348,1756907449536,-480.0,0.00013972,2]
[383344349,1756907449544,-578.00765926,0.00013972,2]
[383344350,1756907449553,-480.0,0.00013972,2]
[383344351,1756907449562,-480.0,0.00013972,2]
[383344352,1756907449571,-522.4,0.00013972,2]
[383344353,1756907449581,-526.35,0.00013972,2]
[383344354,1756907449591,-151.0,0.00013972,2]
[383344355,1756907449600,-480.0,0.00013972,2]
[383344356,1756907449609,-480.0,0.00013972,2]
[383344357,1756907449619,-425.35819495,0.00013972,2]
[383344358,1756907449629,-182.400106,0.00013972,2]
[383344359,1756907449640,-480.0,0.00013972,2]
[383344360,1756907449650,-182.400106,0.00013972,2]
[383344361,1756907449659,-182.400106,0.00013972,2]
[383344362,1756907449669,-182.400098,0.00013972,2]
[383344363,1756907449678,-480.0,0.00013972,2]
[383344364,1756907449687,-482.98320907,0.00013972,2]
[383344365,1756907449697,-151.0,0.00013972,2]
[383344366,1756907449707,-324.42,0.00013972,2]
[383344367,1756907449718,-480.0,0.00013972,2]
[383344368,1756907449728,-571.87,0.00013972,2]
[383344369,1756907449737,-480.0,0.00013972,2]
[383344370,1756907449745,-481.25496652,0.00013972,2]
[383344371,1756907449754,-480.0,0.00013972,2]
[383344372,1756907449762,-480.0,0.00013972,2]
[383344373,1756907449772,-155.26487,0.00013972,2]
[383344374,1756907449781,-155.26487,0.00013972,2]
[383344375,1756907449791,-155.26487,0.00013972,2]
[383344376,1756907449800,-155.264878,0.00013972,2]
[383344377,1756907449810,-480.0,0.00013972,2]
[383344378,1756907449820,-480.0,0.00013972,2]
[383344379,1756907449829,-331.18353167,0.00013972,2]
[383344380,1756907449839,-480.0,0.00013972,2]
[383344381,1756907449848,-480.0,0.00013972,2]
[383344382,1756907449973,-480.0,0.00013972,2]
[383344383,1756907449983,-438.11055703,0.00013972,2]
[383344384,1756907449993,-313.2,0.00013972,2]
[383344385,1756907450003,-480.0,0.00013972,2]
[383344386,1756907450012,-209.4,0.00013972,2]
[383344387,1756907450022,-480.0,0.00013972,2]
[383344388,1756907450032,-221.38,0.00013972,2]
[383344389,1756907450042,-480.0,0.00013972,2]
[383344390,1756907450051,-480.0,0.00013972,2]
[383344391,1756907450061,-480.0,0.00013972,2]
[383344392,1756907450071,-480.0,0.00013972,2]
[383344393,1756907450081,-480.0,0.00013972,2]
[383344394,1756907450092,-480.0,0.00013972,2]
[383344395,1756907450102,-480.0,0.00013972,2]
[383344396,1756907450111,-349.3,0.00013972,2]
[383344397,1756907450121,-480.0,0.00013972,2]
[383344398,1756907450131,-480.0,0.00013972,2]
[383344399,1756907450141,-480.0,0.00013972,2]
[383344400,1756907450150,-172.44,0.00013972,2]
[383344401,1756907450160,-480.0,0.00013972,2]
[383344402,1756907450170,-480.0,0.00013972,2]
[383344403,1756907450180,-541.62,0.00013972,2]
[383344404,1756907450189,-480.0,0.00013972,2]
[383344405,1756907450199,-480.0,0.00013972,2]
[383344406,1756907450209,-483.3550606,0.00013972,2]
[383344407,1756907450221,-572.69826821,0.00013972,2]
[383344408,1756907450232,-382.01,0.00013972,2]
[383344409,1756907450243,-480.0,0.00013972,2]
[383344410,1756907450253,-480.0,0.00013972,2]
[383344411,1756907450264,-480.0,0.00013972,2]
[383344412,1756907450274,-480.0,0.00013972,2]
[383344413,1756907450285,-530.0,0.00013972,2]
[383344414,1756907450295,-480.0,0.00013972,2]
[383344415,1756907450305,-480.0,0.00013972,2]
[383344416,1756907450315,-503.25021848,0.00013972,2]
[383344417,1756907450324,-480.0,0.00013972,2]
[383344418,1756907450334,-481.97077615,0.00013972,2]
[383344419,1756907450345,-480.0,0.00013972,2]
[383344420,1756907450355,-480.0,0.00013972,2]
[383344421,1756907450364,-480.0,0.00013972,2]
[383344422,1756907450377,-480.0,0.00013972,2]
[383344423,1756907450387,-480.0,0.00013972,2]
[383344424,1756907450396,-480.0,0.00013972,2]
[383344425,1756907450406,-480.0,0.00013972,2]
[383344426,1756907450415,-489.24,0.00013972,2]
[383344427,1756907450426,-480.0,0.00013972,2]
[383344428,1756907450436,-641.21,0.00013972,2]
[383344429,1756907450446,-480.0,0.00013972,2]
[383344430,1756907450456,-480.0,0.00013972,2]
[383344431,1756907450466,-480.0,0.00013972,2]
[383344432,1756907450477,-480.0,0.00013972,2]
[383344433,1756907450487,-482.37365407,0.00013972,2]
[383344434,1756907450496,-480.0,0.00013972,2]
[383344435,1756907450506,-480.0,0.00013972,2]
[383344436,1756907450516,-480.0,0.00013972,2]
[383344437,1756907450525,-480.0,0.00013972,2]
[383344438,1756907450535,-480.0,0.00013972,2]
[383344439,1756907450545,-1504.91,0.00013972,2]
[383344440,1756907450555,-480.0,0.00013972,2]
[383344441,1756907450564,-1252.6,0.00013972,2]
[383344442,1756907450574,-673.24,0.00013972,2]
[383344443,1756907450584,-482.5624001,0.00013972,2]
[383344444,1756907450593,-542.8,0.00013972,2]
[383344445,1756907450603,-554.72,0.00013972,2]
[383344446,1756907450613,-480.0,0.00013972,2]
[383344447,1756907450623,-480.0,0.00013972,2]
[383344448,1756907450632,-480.0,0.00013972,2]
[383344449,1756907450643,-480.0,0.00013972,2]
[383344450,1756907450652,-480.0,0.00013972,2]
[383344451,1756907450662,-480.0,0.00013972,2]
[383344452,1756907450672,-480.0,0.00013972,2]
[383344453,1756907450682,-480.0,0.00013972,2]
[383344454,1756907450691,-499.22,0.00013972,2]
[383344455,1756907450701,-480.0,0.00013972,2]
[383344456,1756907450711,-480.0,0.00013972,2]
[383344457,1756907450722,-480.0,0.00013972,2]
[383344458,1756907450733,-1002.88,0.00013972,2]
[383344459,1756907450743,-480.0,0.00013972,2]
[383344460,1756907450753,-530.43,0.00013972,2]
[383344461,1756907450763,-480.0,0.00013972,2]
[383344462,1756907450773,-480.0,0.00013972,2]
[383344463,1756907450784,-525.92,0.00013972,2]
[383344464,1756907450794,-480.0,0.00013972,2]
[383344465,1756907450804,-480.0,0.00013972,2]
[383344466,1756907450814,-480.0,0.00013972,2]
[383344467,1756907450824,-480.0,0.00013972,2]
[383344468,1756907450834,-1197.93,0.00013972,2]
[383344469,1756907450843,-480.0,0.00013972,2]
[383344470,1756907450854,-261.74,0.00013972,2]
[383344471,1756907450863,-480.0,0.00013972,2]
[383344472,1756907450874,-271.99173298,0.00013972,2]
[383344473,1756907450884,-480.0,0.00013972,2]
[383344474,1756907450894,-435.60249108,0.00013972,2]
[383344475,1756907450904,-480.0,0.00013972,2]
[383344476,1756907450914,-480.0,0.00013972,2]
[383344477,1756907450924,-480.0,0.00013972,2]
[383344478,1756907450934,-480.0,0.00013972,2]
[383344479,1756907450944,-480.0,0.00013972,2]
[383344480,1756907450954,-480.0,0.00013972,2]
[383344481,1756907450964,-480.0,0.00013972,2]
[383344482,1756907450974,-480.0,0.00013972,2]
[383344483,1756907450983,-457.16364871,0.00013972,2]
[383344484,1756907450993,-480.0,0.00013972,2]
[383344485,1756907451003,-480.0,0.00013972,2]
[383344486,1756907451013,-480.0,0.00013972,2]
[383344487,1756907451022,-584.98,0.00013972,2]
[383344488,1756907451031,-480.0,0.00013972,2]
[383344489,1756907451041,-480.0,0.00013972,2]
[383344490,1756907451051,-480.0,0.00013972,2]
[383344491,1756907451061,-480.0,0.00013972,2]
[383344492,1756907451071,-503.41,0.00013972,2]
[383344493,1756907451081,-480.0,0.00013972,2]
[383344494,1756907451091,-531.51,0.00013972,2]
[383344495,1756907451100,-481.68766409,0.00013972,2]
[383344496,1756907451110,-480.0,0.00013972,2]
[383344497,1756907451120,-480.0,0.00013972,2]
[383344498,1756907451130,-480.0,0.00013972,2]
[383344499,1756907451140,-480.0,0.00013972,2]
[383344500,1756907451149,-1912.12,0.00013972,2]
[383344501,1756907451158,-522.59,0.00013972,2]
[383344502,1756907451168,-1587.12,0.00013972,2]
[383344503,1756907451178,-480.0,0.00013972,2]
[383344504,1756907451188,-480.0,0.00013972,2]
[383344505,1756907451197,-480.0,0.00013972,2]
[383344506,1756907451206,-480.0,0.00013972,2]
[383344507,1756907451216,-624.89,0.00013972,2]
[383344508,1756907451225,-480.0,0.00013972,2]
[383344509,1756907451235,-480.0,0.00013972,2]
[383344510,1756907451245,-582.18,0.00013972,2]
[383344511,1756907451255,-587.51,0.00013972,2]
[383344512,1756907451264,-480.0,0.00013972,2]
[383344513,1756907451274,-480.0,0.00013972,2]
[383344514,1756907451284,-480.0,0.00013972,2]
[383344515,1756907451294,-480.0,0.00013972,2]
[383344516,1756907451304,-480.0,0.00013972,2]
[383344517,1756907451314,-480.0,0.00013972,2]
[383344518,1756907451324,-480.0,0.00013972,2]
[383344519,1756907451334,-480.0,0.00013972,2]
[383344520,1756907451344,-480.0,0.00013972,2]
[383344521,1756907451354,-506.26754925,0.00013972,2]
[383344522,1756907451363,-252.0223145,0.00013972,2]
[383344523,1756907451375,-480.0,0.00013972,2]
[383344524,1756907451386,-500.0,0.00013972,2]
[383344525,1756907451396,-164.25238665,0.00013973,2]
[383344526,1756907451406,-500.0,0.00013973,2]
[383344527,1756907451415,-500.0,0.00013973,2]
[383344528,1756907451426,-500.0,0.00013973,2]
[383344529,1756907451436,-500.0,0.00013973,2]
[383344530,1756907451446,-500.0,0.00013973,2]
[383344531,1756907451457,-500.0,0.00013973,2]
[383344532,1756907451469,-500.0,0.00013973,2]
[383344533,1756907451479,-500.0,0.00013973,2]
[383344534,1756907451490,-500.51280331,0.00013973,2]
[383344535,1756907451501,-500.0,0.00013973,2]
[383344536,1756907451510,-500.0,0.00013973,2]
[383344537,1756907451520,-500.0,0.00013973,2]
[383344538,1756907451530,-500.0,0.00013973,2]
[383344539,1756907451540,-500.0,0.00013973,2]
[383344540,1756907451549,-501.82497982,0.00013973,2]
[383344541,1756907451559,-501.06769504,0.00013973,2]
[383344542,1756907451569,-500.0,0.00013973,2]
[383344543,1756907451579,-444.98130197,0.00013973,2]
[383344544,1756907451588,-500.0,0.00013973,2]
[383344545,1756907451598,-501.54644049,0.00013973,2]
[383344546,1756907451608,-344.15724098,0.00013973,2]
[383344547,1756907451617,-500.0,0.00013973,2]
[383344548,1756907451627,-3029.688934,0.00013989,2]
[383344549,1756907451639,-100000.0,0.0001399,2]
[383344550,1756907451648,-562.49148253,0.00014037,2]
[383344551,1756907451659,-357.21,0.00014052,2]
[383344552,1756907451668,-198.0,0.00014145,2]
[383344553,1756907451678,-500.0,0.00014221,2]
[383344554,1756907451687,-1000.0,0.00014221,2]
[383344555,1756907451697,-1001.90916831,0.00014221,2]
[383344556,1756907451707,-359.81091253,0.00014221,2]
[383344557,1756907451716,-1000.0,0.00014221,2]
[383344558,1756907451726,-1000.0,0.00014221,2]
[383344559,1756907451736,-1000.0,0.00014221,2]
[383344560,1756907451746,-1000.0,0.00014221,2]
[383344561,1756907451756,-1000.0,0.00014221,2]
[383344562,1756907451766,-1000.0,0.00014221,2]
[383344563,1756907451775,-1000.0,0.00014221,2]
[383344564,1756907451785,-1000.0,0.00014221,2]
[383344565,1756907451795,-1001.15603903,0.00014221,2]
[383344566,1756907451804,-1000.0,0.00014221,2]
[383344567,1756907451814,-500.0,0.00014221,2]
[383344568,1756907451823,-1000.0,0.00014221,2]
[383344569,1756907451833,-1000.0,0.00014221,2]
[383344570,1756907451843,-1000.0,0.00014221,2]
[383344571,1756907451852,-1000.5287249,0.00014221,2]
[383344572,1756907451862,-623.66847999,0.00014221,2]
[383344573,1756907451900,-151.0,0.00014246,2]
[383344574,1756907451910,-151.0,0.00014246,2]
[383344575,1756907451920,-500.0,0.00014246,2]
[383344576,1756907451930,-151.0,0.00014246,2]
[383344577,1756907451939,-151.0,0.00014246,2]
[383344578,1756907451950,-480.0,0.00014246,2]
[383344579,1756907451959,-442.37,0.00014246,2]
[383344580,1756907451969,-608.0,0.00014246,2]
[383344581,1756907451979,-480.0,0.00014246,2]
[383344582,1756907451989,-405.1,0.00014246,2]
[383344583,1756907451999,-187.23,0.00014246,2]
[383344584,1756907452008,-337.92,0.00014246,2]
[383344585,1756907452018,-480.0,0.00014246,2]
[383344586,1756907452028,-480.0,0.00014246,2]
[383344587,1756907452038,-480.0,0.00014246,2]
[383344588,1756907452048,-569.71,0.00014246,2]
[383344589,1756907452058,-480.0,0.00014246,2]
[383344590,1756907452068,-605.91,0.00014246,2]
[383344591,1756907452077,-340.58,0.00014246,2]
[383344592,1756907452087,-622.16,0.00014246,2]
[383344593,1756907452097,-480.0,0.00014246,2]
[383344594,1756907452107,-480.0,0.00014246,2]
[383344595,1756907452116,-326.26,0.00014246,2]
[383344596,1756907452126,-480.0,0.00014246,2]
[383344597,1756907452136,-428.31,0.00014246,2]
[383344598,1756907452146,-480.0,0.00014246,2]
[383344599,1756907452155,-397.12852063,0.00014246,2]
[383344600,1756907452165,-641.21,0.00014246,2]
[383344601,1756907452175,-480.0,0.00014246,2]
[383344602,1756907452184,-537.84,0.00014246,2]
[383344603,1756907452195,-283.72,0.00014246,2]
[383344604,1756907452204,-480.0,0.00014246,2]
[383344605,1756907452214,-480.0,0.00014246,2]
[383344606,1756907452224,-1504.91,0.00014246,2]
[383344607,1756907452234,-1252.6,0.00014246,2]
[383344608,1756907452244,-673.24,0.00014246,2]
[383344609,1756907452254,-542.8,0.00014246,2]
[383344610,1756907452264,-480.0,0.00014246,2]
[383344611,1756907452273,-480.0,0.00014246,2]
[383344612,1756907452283,-480.0,0.00014246,2]
[383344613,1756907452293,-499.22,0.00014246,2]
[383344614,1756907452303,-217.2,0.00014246,2]
[383344615,1756907452314,-480.0,0.00014246,2]
[383344616,1756907452324,-1002.88,0.00014246,2]
[383344617,1756907452334,-480.0,0.00014246,2]
[383344618,1756907452344,-220.72,0.00014246,2]
[383344619,1756907452354,-480.0,0.00014246,2]
[383344620,1756907452363,-480.0,0.00014246,2]
[383344621,1756907452376,-1197.93,0.00014246,2]
[383344622,1756907452386,-480.0,0.00014246,2]
[383344623,1756907452395,-480.0,0.00014246,2]
[383344624,1756907452405,-480.0,0.00014246,2]
[383344625,1756907452415,-480.0,0.00014246,2]
[383344626,1756907452424,-480.0,0.00014246,2]
[383344627,1756907452434,-480.0,0.00014246,2]
[383344628,1756907452443,-569.13,0.00014246,2]
[383344629,1756907452453,-480.0,0.00014246,2]
[383344630,1756907452462,-480.0,0.00014246,2]
[383344631,1756907452472,-480.0,0.00014246,2]
[383344632,1756907452481,-480.0,0.00014246,2]
[383344633,1756907452491,-480.0,0.00014246,2]
[383344634,1756907452500,-480.0,0.00014246,2]
[383344635,1756907452510,-480.0,0.00014246,2]
[383344636,1756907452519,-480.0,0.00014246,2]
[383344637,1756907452529,-1912.12,0.00014246,2]
[383344638,1756907452538,-1587.12,0.00014246,2]
[383344639,1756907452548,-587.51,0.00014246,2]
[383344640,1756907452557,-544.58,0.00014246,2]
[383344641,1756907452566,-480.0,0.00014246,2]
[383344642,1756907452576,-480.0,0.00014246,2]
[383344643,1756907452585,-480.0,0.00014246,2]
[383344644,1756907452595,-500.0,0.00014246,2]
[383344645,1756907452604,-160.0,0.00014255,2]
[383344646,1756907452614,-417.15472785,0.00014255,2]
[383344647,1756907452623,-846.3157213,0.00014255,2]
[383344648,1756907452633,-232.90165665,0.00014255,2]
[383344649,1756907452643,-260.41666667,0.00014255,2]
[383344650,1756907452653,-217.50314573,0.00014255,2]
[383344651,1756907452662,-160.0,0.00014255,2]
[383344652,1756907452671,-530.32150586,0.00014255,2]
[383344653,1756907452681,-160.0,0.00014256,2]
[383344654,1756907452690,-1000.0,0.0001441,2]
[383344655,1756907452700,-1000.0,0.0001441,2]
[383344656,1756907452710,-1000.0,0.0001441,2]
[383344657,1756907452719,-1000.0,0.0001441,2]
[383344658,1756907452729,-1000.0,0.0001441,2]
[383344659,1756907452739,-1000.0,0.0001441,2]
[383344660,1756907452748,-1000.0,0.0001441,2]
[383344661,1756907452758,-1000.0,0.0001441,2]
[383344662,1756907452768,-1000.0,0.0001441,2]
[383344663,1756907452778,-1000.0,0.0001441,2]
[383344664,1756907452788,-1000.0,0.0001441,2]
[383344665,1756907452798,-1000.0,0.0001441,2]
[383344666,1756907452807,-848.76,0.0001441,2]
[383344667,1756907452817,-1196.50512671,0.0001452,2]
[383344668,1756907452827,-198.0,0.0001452,2]
[383344669,1756907452837,-198.0,0.0001452,2]
[383344670,1756907452847,-630.0,0.0001452,2]
[383344671,1756907452857,-198.0,0.0001452,2]
[383344672,1756907452867,-151.0,0.0001452,2]
[383344673,1756907452878,-480.0,0.0001452,2]
[383344674,1756907452887,-480.0,0.0001452,2]
[383344675,1756907452897,-480.0,0.0001452,2]
[383344676,1756907452907,-480.0,0.0001452,2]
[383344677,1756907452917,-480.0,0.0001452,2]
[383344678,1756907452927,-480.0,0.0001452,2]
[383344679,1756907452936,-251.96,0.0001452,2]
[383344680,1756907452947,-480.0,0.0001452,2]
[383344681,1756907452957,-480.0,0.0001452,2]
[383344682,1756907452966,-641.21,0.0001452,2]
[383344683,1756907452976,-284.13,0.0001452,2]
[383344684,1756907452986,-306.33281666,0.0001452,2]
[383344685,1756907452996,-480.0,0.0001452,2]
[383344686,1756907453006,-1504.91,0.0001452,2]
[383344687,1756907453015,-1252.6,0.0001452,2]
[383344688,1756907453025,-673.24,0.0001452,2]
[383344689,1756907453036,-542.8,0.0001452,2]
[383344690,1756907453045,-480.0,0.0001452,2]
[383344691,1756907453055,-480.0,0.0001452,2]
[383344692,1756907453065,-480.0,0.0001452,2]
[383344693,1756907453075,-500.0,0.0001452,2]
[383344694,1756907453085,-499.22,0.0001452,2]
[383344695,1756907453095,-480.0,0.0001452,2]
[383344696,1756907453105,-1002.88,0.0001452,2]
[383344697,1756907453115,-480.0,0.0001452,2]
[383344698,1756907453125,-480.0,0.0001452,2]
[383344699,1756907453135,-159.88,0.0001452,2]
[383344700,1756907453145,-1197.93,0.0001452,2]
[383344701,1756907453155,-480.0,0.0001452,2]
[383344702,1756907453165,-480.0,0.0001452,2]
[383344703,1756907453175,-480.0,0.0001452,2]
[383344704,1756907453185,-244.12,0.0001452,2]
[383344705,1756907453194,-480.0,0.0001452,2]
[383344706,1756907453204,-480.0,0.0001452,2]
[383344707,1756907453214,-480.0,0.0001452,2]
[383344708,1756907453225,-454.58,0.0001452,2]
[383344709,1756907453235,-576.9295837,0.0001452,2]
[383344710,1756907453245,-480.0,0.0001452,2]
[383344711,1756907453254,-480.0,0.0001452,2]
[383344712,1756907453264,-1912.12,0.0001452,2]
[383344713,1756907453274,-1587.12,0.0001452,2]
[383344714,1756907453284,-587.51,0.0001452,2]
[383344715,1756907453293,-480.0,0.0001452,2]
[383344716,1756907453303,-480.0,0.0001452,2]
[383344717,1756907453313,-480.0,0.0001452,2]
[383344718,1756907453322,-511.12853577,0.00014521,2]
[383344719,1756907453333,-315.6651766,0.00014521,2]
[383344720,1756907453343,-1001.41367027,0.00014521,2]
[383344721,1756907453353,-1000.7581849,0.00014521,2]
[383344722,1756907453363,-396.83510807,0.00014521,2]
[383344723,1756907453373,-521.22172087,0.00014521,2]
[383344724,1756907453386,-636.46717375,0.00014521,2]
[383344725,1756907453396,-1000.0,0.00014521,2]
[383344726,1756907453406,-503.28828913,0.00014521,2]
[383344727,1756907453416,-1000.0,0.00014521,2]
[383344728,1756907453427,-1000.0,0.00014521,2]
[383344729,1756907453437,-1000.0,0.00014521,2]
[383344730,1756907453447,-1000.0,0.00014521,2]
[383344731,1756907453459,-333.99349716,0.00014576,2]
[383344732,1756907453471,-1000.0,0.00014576,2]
[383344733,1756907453481,-1000.0,0.00014576,2]
[383344734,1756907453490,-151.0,0.00014576,2]
[383344735,1756907453500,-1000.0,0.00014576,2]
[383344736,1756907453510,-151.0,0.00014576,2]
[383344737,1756907453520,-1000.0,0.00014576,2]
[383344738,1756907453530,-151.0,0.00014576,2]
[383344739,1756907453541,-1000.0,0.00014576,2]
[383344740,1756907453551,-153.58271407,0.00014576,2]
[383344741,1756907453561,-1000.0,0.00014576,2]
[383344742,1756907453572,-704.5538024,0.00014576,2]
[383344743,1756907453764,-20041.70948118,0.00014576,2]
[383344744,1756907453775,-1000.0,0.00014576,2]
[383344745,1756907453785,-151.0,0.00014576,2]
[383344746,1756907453794,-151.0,0.00014576,2]
[383344747,1756907453805,-2264.10087164,0.00014576,2]
[383344748,1756907453815,-250.0,0.00014576,2]
[383344749,1756907453825,-151.0,0.00014576,2]
[383344750,1756907453835,-151.0,0.00014576,2]
[383344751,1756907453846,-1000.0,0.00014576,2]
[383344752,1756907453855,-250.0,0.00014576,2]
[383344753,1756907453866,-151.0,0.00014576,2]
[383344754,1756907453876,-151.0,0.00014576,2]
[383344755,1756907453886,-250.0,0.00014576,2]
[383344756,1756907453896,-1000.0,0.00014576,2]
[383344757,1756907453906,-151.0,0.00014576,2]
[383344758,1756907453916,-151.0,0.00014576,2]
[383344759,1756907453926,-151.0,0.00014576,2]
[383344760,1756907453936,-250.0,0.00014576,2]
[383344761,1756907453946,-1000.0,0.00014576,2]
[383344762,1756907453957,-151.0,0.00014576,2]
[383344763,1756907453966,-151.0,0.00014576,2]
[383344764,1756907453977,-151.0,0.00014576,2]
[383344765,1756907453987,-250.0,0.00014576,2]
[383344766,1756907453998,-151.0,0.00014576,2]
[383344767,1756907454008,-1000.0,0.00014576,2]
[383344768,1756907454018,-151.0,0.00014576,2]
[383344769,1756907454028,-250.0,0.00014576,2]
[383344770,1756907454040,-151.0,0.00014576,2]
[383344771,1756907454050,-151.0,0.00014576,2]
[383344772,1756907454060,-151.0,0.00014576,2]
[383344773,1756907454070,-1000.0,0.00014576,2]
[383344774,1756907454080,-250.0,0.00014576,2]
[383344775,1756907454090,-151.0,0.00014576,2]
[383344776,1756907454100,-151.0,0.00014576,2]
[383344777,1756907454115,-151.0,0.00014576,2]
[383344778,1756907454127,-151.0,0.00014576,2]
[383344779,1756907454137,-250.0,0.00014576,2]
[383344780,1756907454149,-1000.0,0.00014576,2]
[383344781,1756907454159,-151.0,0.00014576,2]
[383344782,1756907454169,-151.0,0.00014576,2]
[383344783,1756907454179,-151.0,0.00014576,2]
[383344784,1756907454189,-151.0,0.00014576,2]
[383344785,1756907454199,-250.0,0.00014576,2]
[383344786,1756907454209,-1000.0,0.00014576,2]
[383344787,1756907454219,-151.0,0.00014576,2]
[383344788,1756907454229,-151.0,0.00014576,2]
[383344789,1756907454240,-250.0,0.00014576,2]
[383344790,1756907454250,-151.0,0.00014576,2]
[383344791,1756907454260,-151.0,0.00014576,2]
[383344792,1756907454270,-1000.0,0.00014576,2]
[383344793,1756907454280,-151.0,0.00014576,2]
[383344794,1756907454291,-151.0,0.00014576,2]
[383344795,1756907454300,-151.0,0.00014576,2]
[383344796,1756907454310,-250.0,0.00014576,2]
[383344797,1756907454320,-151.0,0.00014576,2]
[383344798,1756907454331,-500.0,0.00014576,2]
[383344799,1756907454341,-1000.0,0.00014576,2]
[383344800,1756907454351,-151.0,0.00014576,2]
[383344802,1756907454361,-151.0,0.00014576,2]
[383344803,1756907454371,-151.0,0.00014576,2]
[383344804,1756907454384,-151.0,0.00014576,2]
[383344805,1756907454482,-250.0,0.00014576,2]
[383344806,1756907454508,-500.0,0.00014576,2]
[383344807,1756907454518,-796.50445325,0.00014576,2]
[383344808,1756907454533,-203.49554675,0.00014576,2]
[383344809,1756907454542,-151.0,0.00014576,2]
[383344810,1756907454552,-151.0,0.00014576,2]
[383344811,1756907454561,-151.0,0.00014576,2]
[383344812,1756907454571,-151.0,0.00014576,2]
[383344813,1756907454580,-1000.0,0.00014576,2]
[383344814,1756907454590,-250.0,0.00014576,2]
[383344815,1756907454599,-151.0,0.00014576,2]
[383344816,1756907454609,-151.0,0.00014576,2]
[383344817,1756907454619,-151.0,0.00014576,2]
[383344818,1756907454628,-500.0,0.00014576,2]
[383344819,1756907454638,-151.0,0.00014576,2]
[383344820,1756907454648,-151.0,0.00014576,2]
[383344821,1756907454657,-151.0,0.00014576,2]
[383344822,1756907454666,-151.0,0.00014576,2]
[383344823,1756907454676,-1000.0,0.00014576,2]
[383344824,1756907454685,-500.0,0.00014576,2]
[383344825,1756907454694,-250.0,0.00014576,2]
[383344826,1756907454703,-151.0,0.00014576,2]
[383344827,1756907454713,-500.0,0.00014576,2]
[383344828,1756907454722,-151.0,0.00014576,2]
[383344829,1756907454732,-151.0,0.00014576,2]
[383344830,1756907454742,-250.0,0.00014576,2]